[Event "French-ch U16-U18 2024"]
[Site "Agen"]
[Date "2024.04.20"]
[Round "8.7"]
[White "Kuhn, Clement"]
[Black "Gibaud, Elian"]
[Result "1-0"]
[ECO "B48"]
[WhiteElo "2349"]
[BlackElo "1985"]
[Annotator "TA"]
[PlyCount "69"]
[EventDate "2024.04.14"]
[EventType "swiss"]
[EventCountry "FRA"]
[SourceTitle "playchess.com"]
[Source "ChessBase"]
[SourceQuality "1"]
[TimeControl "5400+30"]

{[%evp 11,69,17,45,14,0,0,0,0,0,0,0,0,0,0,0,5,31,0,0,-44,-44,-20,-45,-39,-47,-50,-5,-44,-43,-54,-48,-66,-62,-47,-46,-60,0,0,210,462,442,437,443,419,522,502,2771,2475,2487,2414,5469,5469,5369,5393,4974,5102,5335,5082,2208,2002]} 1. e4 {[%emt 0:00:05]} c5 {[%emt 0:00:40]} 2. Nf3 {[%emt 0:00:32]} e6 {[%emt 0:00:25]} 3. d4 {[%emt 0:00:23]} cxd4 {[%emt 0:00:11]} 4. Nxd4 {[%emt 0:00:02]} Nc6 {[%emt 0:01:16]} 5. Nc3 {[%emt 0:01:11][%cal Bb1c3,Bc3e2,Be2f4][%mdl 32]} Qc7 {[%emt 0:00:10]} 6. Be3 {[%emt 0:00:16]} a6 {[%emt 0:00:11]} 7. g4 {[%emt 0:00:18]} b5 {[%emt 0:01:50][%cal Bb7b5,Bb5b4][%mdl 32]} 8. Nxc6 {[%emt 0:00:31]} Qxc6 {[%emt 0:00:23]} 9. Qd2 {[%emt 0:00:04] The position is equal.} b4 {[%emt 0:00:31]} 10. Ne2 {[%emt 0:00:05]} Qxe4 {[%emt 0:00:21]} 11. Rg1 {[%emt 0:00:03] aiming for Bg2.} Qc4 {[%emt 0:00:21]} 12. Nf4 {[%emt 0:00:06]} Qc7 {[%emt 0:00:10]} 13. O-O-O {[%emt 0:00:09]} Ne7 {[%emt 0:03:18]} 14. Rg3 {[%emt 0:19:35]} a5 {[%emt 0:13:46]} 15. Bg2 {[%emt 0:07:55]} Bb7 {[%emt 0:06:04]} 16. Bb6 {[%emt 0:06:27]} Qc8 {[%emt 0:00:25]} 17. Bxb7 {[%emt 0:04:41]} Qxb7 {[%emt 0:00:13]} 18. Bd4 {[%emt 0:05:38]} Nd5 {[%emt 0:15:51]} 19. Nh5 {[%emt 0:00:44]} Rg8 {[%emt 0:01:03]} 20. Qd3 {[%emt 0:03:01]} g6 {[%emt 0:03:40]} 21. Nf6+ {[%emt 0:00:21]} Nxf6 {[%emt 0:00:16]} 22. Bxf6 {[%emt 0:00:01]} Rc8 {[%emt 0:12:32]} 23. Kb1 {[%emt 0:04:45]} Rc5 {[%emt 0:03:07]} (23... g5 $15) 24. Qd2 $11 {[%emt 0:08:48]} Rd5 $2 {[%emt 0:11:48] [#]} (24... Bg7 $11 {and Black stays safe.} 25. Qd6 Bf8) 25. Qxd5 $1 $18 {[%emt 0:08:05]} exd5 {[%emt 0:01:00]} 26. Re3+ {[%emt 0:00:04]} Be7 {[%emt 0:00:18]} 27. Rxe7+ {[%emt 0:00:01]} Kd8 {[%emt 0:05:24] [#]} 28. Rxd5 $1 {[%emt 0:01:13] White is clearly winning.} Re8 {[%emt 0:10:31]} (28... Qxd5 $142 29. Re5+ (29. Rxf7+ $2 Kc7 $19) 29... Kc8 30. Rxd5 Re8) 29. Re6+ {[%emt 0:00:27]} (29. Rxa5 $2 Rxe7 30. b3 Ke8 31. Bxe7 Kxe7 $19) (29. Rexd7+ $2 Kc8 30. Rd8+ Rxd8 31. Rxd8+ Kc7 $19) 29... Kc7 {[%emt 0:02:16]} 30. Rc5+ {[%emt 0:00:06]} (30. Rxe8 $2 {perishes.} Qxd5 31. Bd8+ Kb7 $19) 30... Kb8 {[%emt 0:00:18]} 31. Rxe8+ {[%emt 0:01:15]} (31. Be5+ d6 32. Rxe8+ Ka7 33. Rxa5+ (33. Bxd6 $2 {gets mated.} Qh1+) 33... Kb6 $15) 31... Ka7 {[%emt 0:00:08]} 32. Rxa5+ {[%emt 0:02:08]} Kb6 {[%emt 0:00:12]} 33. Bd8+ {[%emt 0:01:05]} Kc6 {[%emt 0:00:12]} 34. Ree5 {[%emt 0:00:09]} d6 {[%emt 0:01:31] Dodges Rac5+} 35. Re7 {[%emt 0:00:16] Weighted Error Value: White=0.08 (flawless) /Black=0.36.  Loses game:     	---       	Black=1      Mistake:       	---       	Black=2      Inaccurate:     	White=3     	Black=2      OK:         	White=9     	Black=7      Best:        	White=3     	Black=3      Strong:       	White=2     	---} 1-0

[Event "French-ch U16-U18 2024"]
[Site "Agen"]
[Date "2024.04.20"]
[Round "8.8"]
[White "Dessyn, Timothee"]
[Black "Vallee, Louis"]
[Result "1-0"]
[ECO "D87"]
[WhiteElo "2110"]
[BlackElo "2270"]
[Annotator "TA"]
[PlyCount "73"]
[EventDate "2024.04.14"]
[EventType "swiss"]
[EventCountry "FRA"]
[SourceTitle "playchess.com"]
[Source "ChessBase"]
[SourceQuality "1"]
[TimeControl "5400+30"]

{[%evp 19,73,25,42,37,52,0,2,-8,32,37,28,0,15,22,32,23,22,0,0,0,0,0,17,14,8,11,20,8,52,47,27,9,14,11,1057,999,918,855,29976,29977,29974,29975,29991,29973,29963,29966,4994,736,1130,1168,1191,1185,1522,1300,1036,987]} 1. d4 {[%emt 0:00:04]} Nf6 {[%emt 0:00:19]} 2. c4 {[%emt 0:00:09]} g6 {[%emt 0:00:09]} 3. Nc3 {[%emt 0:00:17]} d5 {[%emt 0:00:17]} 4. cxd5 {[%emt 0:00:06]} Nxd5 {[%emt 0:00:06]} 5. e4 {[%emt 0:00:05]} Nxc3 {[%emt 0:00:07]} 6. bxc3 {[%emt 0:00:05]} Bg7 {[%emt 0:00:13]} 7. Bc4 {[%emt 0:01:21]} c5 {[%emt 0:00:11]} 8. Ne2 {[%emt 0:04:01]} Nc6 {[%emt 0:00:07]} 9. Be3 {[%emt 0:06:04]} O-O {[%emt 0:00:10]} 10. O-O {[%emt 0:00:11]} b6 {[%emt 0:00:07]} 11. dxc5 {[%emt 0:16:24]} Qc7 {[%emt 0:00:29]} 12. cxb6 {[%emt 0:03:18]} (12. Nd4 $14 Ne5 13. Nb5) 12... axb6 $11 {[%emt 0:00:38]} 13. Rb1 {[%emt 0:06:31] The position is equal.} Na5 {[%emt 0:04:48]} 14. Bd5 {[%emt 0:13:40]} (14. Bxb6 $2 {too greedy.} Qxc4 15. Rb4 Qa6 $19 (15... Qxa2 16. Ra4 $17)) 14... Rb8 {[%emt 0:01:22]} 15. Re1 {[%emt 0:08:37]} Ba6 {[%emt 0:11:08][%cal Oe7e6]} 16. Bf4 {[%emt 0:07:27]} Be5 {[%emt 0:06:19]} 17. Bxe5 {[%emt 0:02:44]} Qxe5 {[%emt 0:00:02]} 18. Qd4 {[%emt 0:04:29]} Qc7 {[%emt 0:00:49]} 19. Qe3 {[%emt 0:01:36]} Rfc8 {[%emt 0:10:36]} 20. Rbc1 {[%emt 0:01:34]} Bxe2 {[%emt 0:09:27]} 21. Rxe2 {[%emt 0:02:32][%cal Be1e2,Be2d2,Bd2d7,Bd7d8][%mdl 32]} e6 {[%emt 0:00:13]} 22. Bb3 {[%emt 0:00:15]} Qe7 {[%emt 0:01:44]} 23. Rd2 {[%emt 0:03:39]} Rc5 {[%emt 0:02:07]} 24. Rcd1 {[%emt 0:02:12]} Rbc8 {[%emt 0:13:13]} 25. Rd7 {[%emt 0:03:01]} Qf6 {[%emt 0:06:50]} 26. h3 $36 {[%emt 0:01:27][%mdl 2048] White fights for an advantage.} Qxc3 $2 {[%emt 0:13:35][%mdl 8192] Black cannot hold the game after this.} (26... Nxb3 $11 27. axb3 Rxc3 28. Qxb6 h5) 27. Qf4 $18 {[%emt 0:05:36]} Rf8 {[%emt 0:00:15] [#]} 28. Bxe6 $1 {[%emt 0:03:56][%mdl 512]} fxe6 {[%emt 0:01:36][%cal Bf7e6,Be6f5,Bf5f4][%mdl 32] [#]} (28... Qg7 29. Rxf7) 29. Rd8 $1 {[%emt 0:00:01][%csl Gd8][%cal Rf4f8]} Rcf5 {[%emt 0:13:44]} 30. exf5 {[%emt 0:00:06]} exf5 {[%emt 0:01:57]} 31. Qh6 {[%emt 0:00:39][%csl Gh6][%cal Rd8f8]} Qg7 {[%emt 0:00:59]} 32. Rxf8+ {[%emt 0:00:24]} Qxf8 {[%emt 0:00:05]} 33. Qxf8+ {[%emt 0:01:23]} (33. Qh4 $142 Kf7 34. Qxh7+ Kf6 35. Qc7) 33... Kxf8 {[%emt 0:00:00]} 34. Rb1 {[%emt 0:00:07]} Ke7 {[%emt 0:01:32]} 35. Rxb6 {[%emt 0:00:13]} f4 {[%emt 0:00:16]} 36. Rb5 {[%emt 0:00:35]} Nc6 {[%emt 0:00:32]} 37. Rb7+ {[%emt 0:00:05] Weighted Error Value: White=0.11 (very precise) /Black=0.38.  Loses game:     	---       	Black=1      Mistake:       	White=1     	---        Inaccurate:     	White=1     	Black=2      OK:         	White=6     	Black=5      Best:        	White=1     	---} 1-0

[Event "French-ch U16-U18 2024"]
[Site "Agen"]
[Date "2024.04.20"]
[Round "8.9"]
[White "Lissillour, Baptiste"]
[Black "Flagiello, Francesco"]
[Result "1/2-1/2"]
[ECO "D30"]
[WhiteElo "2130"]
[BlackElo "1952"]
[Annotator "TA"]
[PlyCount "149"]
[EventDate "2024.04.14"]
[EventType "swiss"]
[EventCountry "FRA"]
[SourceTitle "playchess.com"]
[Source "ChessBase"]
[SourceQuality "1"]
[TimeControl "5400+30"]

{[%evp 18,149,37,26,56,63,65,22,33,26,60,56,49,56,97,36,50,34,41,45,51,48,47,46,49,45,57,17,58,36,49,31,22,11,195,181,195,188,189,21,26,0,0,-9,0,0,0,0,0,-1,0,0,0,-12,0,0,15,0,0,0,0,-8,-2,-7,0,0,0,0,0,0,0,0,0,3,38,38,77,77,77,77,77,77,89,89,118,118,118,118,148,0,118,37,118,118,148,118,148,148,1543,1554,1244,1061,1067,605,715,156,156,156,156,156,156,156,156,156,156,156,156,0,148,148,148,148,148,148,148,148,149,0,148,0,148,148,148,0]} 1. Nf3 {[%emt 0:00:03]} Nf6 {[%emt 0:00:11]} 2. g3 {[%emt 0:00:28]} d5 {[%emt 0:00:37]} 3. Bg2 {[%emt 0:00:07]} e6 {[%emt 0:00:41]} 4. O-O {[%emt 0:00:54]} Be7 {[%emt 0:00:35]} 5. c4 {[%emt 0:00:07]} O-O {[%emt 0:00:49]} 6. b3 {[%emt 0:00:03]} c5 {[%emt 0:10:55]} 7. cxd5 {[%emt 0:00:19]} exd5 {[%emt 0:01:09]} 8. d4 {[%emt 0:00:10]} Nc6 {[%emt 0:01:52]} 9. Bb2 {[%emt 0:00:57]} Re8 {[%emt 0:06:22]} 10. Nc3 {[%emt 0:04:34]} Be6 {[%emt 0:06:00]} 11. Rc1 {[%emt 0:02:01]} Rc8 {[%emt 0:03:08]} 12. e3 {[%emt 0:02:26]} cxd4 {[%emt 0:03:00] The position is equal.} 13. Nxd4 {[%emt 0:00:12]} Qd7 {[%emt 0:02:43]} 14. Nxe6 {[%emt 0:07:53]} fxe6 {[%emt 0:02:29]} 15. Bh3 {[%emt 0:00:06][%cal Oe3e4]} Bf8 {[%emt 0:08:40]} 16. Ne2 {[%emt 0:13:14]} (16. e4 $16) 16... Qf7 $14 {[%emt 0:03:08]} 17. Nd4 {[%emt 0:00:30]} Nxd4 {[%emt 0:04:22]} 18. Bxd4 {[%emt 0:11:17]} a6 {[%emt 0:03:56]} 19. Bb2 {[%emt 0:07:17]} Ne4 {[%emt 0:08:08]} 20. Bg2 {[%emt 0:00:53]} Qf5 {[%emt 0:03:23]} 21. Qe2 {[%emt 0:02:51]} Bd6 {[%emt 0:03:47]} 22. Rfd1 {[%emt 0:09:32]} Bb8 {[%emt 0:07:24]} 23. Ba1 {[%emt 0:16:08]} Rf8 {[%emt 0:06:48][%cal Be8f8,Bf8c8,Bc8c3][%mdl 32]} 24. Rxc8 {[%emt 0:05:16]} Rxc8 {[%emt 0:00:32]} 25. h4 {[%emt 0:10:51]} Nc3 $2 {[%emt 0:03:01]} (25... h6 $11 {and Black has nothing to worry.}) 26. Bxc3 $18 {[%emt 0:00:06]} Rxc3 {[%emt 0:00:06]} 27. e4 $1 {[%emt 0:01:58]} Qe5 {[%emt 0:01:25]} 28. Qg4 $2 {[%emt 0:02:19]} (28. f4 $1 $18 {[%cal Rf4e5]} Qf6 29. exd5) 28... d4 $11 {[%emt 0:02:52]} 29. Bh3 {[%emt 0:00:59]} Kf7 {[%emt 0:01:20]} 30. Qe2 {[%emt 0:00:47]} Ba7 {[%emt 0:01:13][%cal Oc3g3] Threatens to win with ...Rxg3+!} 31. Rd3 {[%emt 0:00:05]} g6 {[%emt 0:01:54]} 32. Bf1 {[%emt 0:01:14]} Kg7 {[%emt 0:00:45]} 33. Kg2 {[%emt 0:00:35] White is weak on the dark squares} h5 {[%emt 0:00:54]} 34. Kh2 {[%emt 0:00:28]} Qc5 {[%emt 0:00:45]} 35. a4 {[%emt 0:00:46]} Rxd3 {[%emt 0:01:29]} 36. Qxd3 {[%emt 0:00:01][%mdl 4096] Endgame. KQB-KQB} Qc3 {[%emt 0:00:14]} 37. Kg2 {[%emt 0:00:41]} Qxd3 {[%emt 0:01:28]} 38. Bxd3 {[%emt 0:00:02] KB-KB} e5 {[%emt 0:00:22]} 39. Kf3 {[%emt 0:01:00]} Kf6 {[%emt 0:00:13]} 40. Ke2 {[%emt 0:00:36]} Bc5 {[%emt 0:00:23]} 41. f4 {[%emt 0:00:38]} Bb4 {[%emt 0:00:58]} 42. Kf3 {[%emt 0:00:14]} Bd6 {[%emt 0:00:37]} 43. Bc4 {[%emt 0:00:06]} a5 {[%emt 0:00:26]} 44. Bb5 {[%emt 0:00:01]} b6 {[%emt 0:00:44]} 45. Be8 {[%emt 0:00:01]} Bc5 {[%emt 0:00:31]} 46. fxe5+ {[%emt 0:00:28]} Kxe5 {[%emt 0:00:21]} 47. Bxg6 {[%emt 0:00:01]} d3 {[%emt 0:00:32]} 48. Bxh5 {[%emt 0:00:02]} d2 {[%emt 0:00:29]} 49. Ke2 {[%emt 0:00:29]} Kxe4 {[%emt 0:00:05]} 50. Bg6+ {[%emt 0:01:18]} (50. Kxd2 $6 Bf2 $11) 50... Ke5 {[%emt 0:00:16][%cal Oc5f2]} 51. Bc2 $1 {[%emt 0:00:12]} ({Inferior is} 51. Kxd2 Bf2 $15) 51... Bb4 {[%emt 0:01:07]} 52. Ke3 {[%emt 0:00:04]} Bc5+ {[%emt 0:00:11]} 53. Ke2 {[%emt 0:00:01]} ({But not} 53. Kxd2 Bf2 $16) 53... Bb4 {[%emt 0:00:02]} 54. Kd3 {[%emt 0:03:26]} (54. Kf3 $16) 54... Kf5 {[%emt 0:00:38]} (54... d1=B $14 55. Bxd1 Be1) 55. Bd1 $16 {[%emt 0:00:09] Black must now prevent Ke3.} Ke5 {[%emt 0:00:41]} 56. g4 {[%emt 0:00:10][%cal Bg3g4,Bg4g5][%mdl 32] aiming for Ke3.} Kf4 {[%emt 0:01:03]} 57. g5 {[%emt 0:00:01]} Kf5 $2 {[%emt 0:00:45][%mdl 8192] [#]} (57... Bf8 $16 58. Kxd2 Bb4+ 59. Kd3 Bc5) 58. Ke3 $1 $18 {[%emt 0:00:55]} Bc3 {[%emt 0:00:19] [#]} 59. Kf3 $1 {[%emt 0:00:19]} Be5 {[%emt 0:00:23]} 60. Bc2+ {[%emt 0:00:06]} Ke6 {[%emt 0:00:04]} 61. h5 $2 {[%emt 0:00:20]} (61. b4 $18 {is more deadly.} axb4 62. Ke4) 61... d1=Q+ {[%emt 0:00:50]} 62. Bxd1 {[%emt 0:00:04]} Kf5 {[%emt 0:00:02]} 63. g6 {[%emt 0:00:19]} Kg5 {[%emt 0:00:13]} 64. Ke4 {[%emt 0:00:04]} Bg7 {[%emt 0:00:15]} 65. Kd5 {[%emt 0:00:14]} Kh6 {[%emt 0:00:08]} 66. Kc6 {[%emt 0:00:17]} Bd4 {[%emt 0:00:05]} 67. Kd5 $2 {[%emt 0:00:28]} (67. b4 $16) 67... Bc3 {[%emt 0:00:25]} (67... Bg7 $1 $11) 68. Kc4 {[%emt 0:00:06]} Bb4 {[%emt 0:00:32]} 69. Bf3 {[%emt 0:00:09]} Kg7 {[%emt 0:00:09]} 70. Kd4 {[%emt 0:00:06]} Be1 {[%emt 0:00:29]} 71. Ke5 {[%emt 0:00:12]} Kh6 {[%emt 0:00:24]} 72. Kd4 {[%emt 0:00:18]} Kg7 $1 {[%emt 0:00:23]} 73. Kc4 {[%emt 0:00:05]} Bb4 $1 {[%emt 0:00:19]} 74. Be4 {[%emt 0:00:04]} Kh6 {[%emt 0:00:11]} 75. Bf3 {[%emt 0:06:47] Weighted Error Value: White=0.29 (precise) /Black=0.19 (very precise) .  Loses game:     	---       	Black=2      Missed win:     	White=1     	---        Mistake:       	White=4     	Black=2      Inaccurate:     	White=3     	Black=6      OK:         	White=17    	Black=9      Best:        	White=4     	Black=4      Strong:       	White=3     	Black=2} (75. Kd5 $16) 1/2-1/2

[Event "French-ch U16-U18 2024"]
[Site "Agen"]
[Date "2024.04.20"]
[Round "8.10"]
[White "Zienkiewicz, Jan"]
[Black "Ernst, Luca"]
[Result "0-1"]
[ECO "B69"]
[WhiteElo "2240"]
[BlackElo "2133"]
[Annotator "TA"]
[PlyCount "78"]
[EventDate "2024.04.14"]
[EventType "swiss"]
[EventCountry "FRA"]
[SourceTitle "playchess.com"]
[Source "ChessBase"]
[SourceQuality "1"]
[TimeControl "5400+30"]

{[%evp 23,78,30,47,46,47,49,27,37,39,52,49,36,41,28,66,51,95,10,15,0,0,0,0,-14,0,0,0,0,0,-89,0,0,0,0,0,0,0,0,0,0,0,0,0,0,0,-391,-280,-847,-930,-1080,-1035,-1781,-1159,-29989,-29988,-29994,-29995]} 1. e4 {[%emt 0:00:06]} c5 {[%emt 0:00:19]} 2. Nf3 {[%emt 0:00:38]} Nc6 {[%emt 0:00:05]} 3. d4 {[%emt 0:01:12]} cxd4 {[%emt 0:00:06]} 4. Nxd4 {[%emt 0:00:06]} Nf6 {[%emt 0:00:05]} 5. Nc3 {[%emt 0:00:34]} d6 {[%emt 0:00:08]} 6. Bg5 {[%emt 0:00:14]} e6 {[%emt 0:00:07]} 7. Qd2 {[%emt 0:00:07]} a6 {[%emt 0:00:05]} 8. O-O-O {[%emt 0:00:07]} Bd7 {[%emt 0:00:04]} 9. f4 {[%emt 0:00:06]} Be7 {[%emt 0:00:05]} 10. Nf3 {[%emt 0:00:03]} b5 {[%emt 0:00:08]} 11. Bxf6 {[%emt 0:00:43]} gxf6 {[%emt 0:00:07]} 12. Bd3 {[%emt 0:00:23]} Qa5 {[%emt 0:07:34]} 13. Kb1 $1 {[%emt 0:06:01]} Rc8 {[%emt 0:03:53]} 14. Rhe1 {[%emt 0:05:13]} Nb4 {[%emt 0:09:00]} 15. f5 {[%emt 0:12:17] White has an edge.} Nxd3 {[%emt 0:10:09]} 16. Qxd3 {[%emt 0:01:28] Strongly threatening fxe6.} b4 {[%emt 0:01:11][%csl LRc3,LRf5]} 17. fxe6 {[%emt 0:18:45]} fxe6 {[%emt 0:01:15]} 18. Ne2 {[%emt 0:01:50]} O-O {[%emt 0:11:01]} 19. Nfd4 {[%emt 0:05:04]} Kh8 {[%emt 0:10:39]} 20. Rf1 {[%emt 0:05:55]} (20. Nf4 $16) 20... Qe5 $11 {[%emt 0:06:49]} 21. g4 {[%emt 0:16:09]} Rg8 {[%emt 0:03:02]} 22. h3 {[%emt 0:00:56]} a5 {[%emt 0:01:43][%cal Ba6a5,Ba5a4,Ba4a3][%mdl 32]} 23. Qe3 {[%emt 0:08:06]} Qc5 {[%emt 0:04:44]} 24. Qd3 {[%emt 0:03:14]} a4 {[%emt 0:01:33]} 25. Nf4 {[%emt 0:08:06]} Qe5 {[%emt 0:11:22]} 26. Qe3 {[%emt 0:03:55] [#]} (26. Qd2 $11 {remains equal.}) 26... Rc4 {[%emt 0:03:29]} ({Black should try} 26... d5 $1 $17 27. Rfe1 Bc5) 27. Rfe1 {[%emt 0:00:56]} Rgc8 {[%emt 0:01:25][%cal Oa4a3]} 28. Re2 {[%emt 0:01:18]} a3 {[%emt 0:02:14] White must now prevent ...axb2.} 29. b3 {[%emt 0:00:22]} Rc3 {[%emt 0:00:02]} 30. Rd3 {[%emt 0:00:09]} R3c7 {[%emt 0:03:21]} 31. Rd1 {[%emt 0:00:51]} Bb5 {[%emt 0:01:54]} 32. Nd3 {[%emt 0:00:37]} Bxd3 {[%emt 0:00:35]} 33. Rxd3 {[%emt 0:00:11]} Rc3 {[%emt 0:00:47]} 34. Red2 $2 {[%emt 0:00:14][%mdl 8192]} (34. Nf3 $1 $11 Qb5 35. Nd4 Rxd3 36. cxd3) 34... d5 {[%emt 0:01:12]} 35. Rxc3 $2 {[%emt 0:01:21]} (35. Ne2 R3c5 36. c3 dxe4 37. Rd7 bxc3 38. Rc2) 35... Rxc3 $19 {[%emt 0:01:14]} 36. Qe2 {[%emt 0:00:41] White is weak on the dark squares} Rxh3 {[%emt 0:01:00]} 37. Rd1 {[%emt 0:00:26] Prevents Rh1.} Bc5 {[%emt 0:00:45]} ({Inferior is} 37... Qxe4 38. Qb5 Kg7 (38... Qxg4 $2 {is the wrong capture.} 39. Qe8+ Kg7 40. Qxe7+ Kg6 41. Qe8+ Kg5 42. Qg8+ Kh4 43. Qxh7+ Qh5 44. Qxh5+ Kxh5 45. Nxe6 $18) 39. Qe8 $15) 38. Qb5 {[%emt 0:00:33]} Bxd4 {[%emt 0:01:36]} 39. Qxb4 {[%emt 0:00:27] [#]} Bc5 $1 {[%emt 0:00:31][%mdl 512] Weighted Error Value: White=0.78/Black=0.12 (very precise) .  Loses game:     	White=1     	---        Mistake:       	White=3     	Black=1      Inaccurate:     	---       	Black=2      OK:         	White=11    	Black=10} 0-1

[Event "French-ch U16-U18 2024"]
[Site "Agen"]
[Date "2024.04.20"]
[Round "8.11"]
[White "Deladerriere, Calypso"]
[Black "Riss, Selenia"]
[Result "1-0"]
[ECO "C47"]
[WhiteElo "1935"]
[BlackElo "1763"]
[Annotator "TA"]
[PlyCount "87"]
[EventDate "2024.04.14"]
[EventType "swiss"]
[EventCountry "FRA"]
[SourceTitle "playchess.com"]
[Source "ChessBase"]
[SourceQuality "1"]
[TimeControl "5400+30"]

{[%evp 9,87,-22,-1,-25,-39,-41,8,11,6,9,16,14,10,10,10,12,14,6,8,-36,0,-12,18,19,35,38,25,36,21,22,27,28,32,31,33,35,28,27,45,7,14,0,16,14,12,0,199,210,233,70,187,200,250,251,243,239,247,248,269,246,410,407,418,415,603,680,800,522,537,554,576,541,592,592,570,465,1935,1566,2158,2070]} 1. e4 {[%emt 0:00:04]} e5 {[%emt 0:00:03][%cal Be7e5,Be5d4][%mdl 32]} 2. Nf3 {[%emt 0:00:13]} Nc6 {[%emt 0:00:03]} 3. Nc3 {[%emt 0:00:14]} Nf6 {[%emt 0:00:07]} 4. d4 {[%emt 0:00:19]} exd4 {[%emt 0:00:09]} 5. Nd5 {[%emt 0:00:21]} Be7 {[%emt 0:03:43]} 6. Bd3 {[%emt 0:00:39]} d6 {[%emt 0:16:58]} 7. h3 {[%emt 0:00:51] Prevents Bg4.} Nxd5 {[%emt 0:12:47]} (7... O-O $15) 8. exd5 $11 {[%emt 0:00:50] The position is equal.} Ne5 {[%emt 0:01:39]} 9. Nxd4 {[%emt 0:05:05]} Nxd3+ {[%emt 0:04:50]} 10. Qxd3 {[%emt 0:00:25]} O-O {[%emt 0:05:46]} 11. O-O {[%emt 0:00:50]} Bf6 {[%emt 0:02:59]} 12. Bf4 {[%emt 0:02:06]} Re8 {[%emt 0:13:11]} 13. c4 {[%emt 0:06:10]} Bd7 {[%emt 0:01:29]} 14. b4 {[%emt 0:01:37]} a6 {[%emt 0:05:54]} 15. Rac1 {[%emt 0:04:51]} Be5 {[%emt 0:04:06]} 16. Bxe5 {[%emt 0:03:51]} dxe5 {[%emt 0:01:28]} 17. Ne2 {[%emt 0:03:23]} f5 {[%emt 0:06:09]} 18. Rfe1 {[%emt 0:02:25]} Qf6 {[%emt 0:01:55]} 19. Rcd1 {[%emt 0:08:36]} Rad8 {[%emt 0:02:51]} 20. Nc3 {[%emt 0:01:08]} e4 {[%emt 0:01:25]} 21. Qd4 {[%emt 0:00:45]} Qg6 {[%emt 0:00:56]} 22. Qe3 {[%emt 0:02:16]} Qf6 {[%emt 0:02:15]} 23. Qd2 {[%emt 0:05:31]} Rf8 {[%emt 0:02:45]} 24. Kh1 {[%emt 0:03:44]} Be8 {[%emt 0:01:27]} 25. Qd4 {[%emt 0:01:28]} Qg5 {[%emt 0:00:43]} 26. Qe5 {[%emt 0:01:12] [#] Threatens to win with Nxe4.} Qh4 {[%emt 0:01:39]} 27. Qxc7 {[%emt 0:00:52] Hoping for Qg3.} Rd7 $2 {[%emt 0:01:18]} (27... Bh5 $11 {and Black has nothing to worry.}) 28. Qg3 $18 {[%emt 0:00:32]} Qf6 {[%emt 0:00:08]} 29. f4 $2 {[%emt 0:01:24]} (29. Qe3 $18) 29... Bh5 {[%emt 0:00:51]} (29... exf3 $1 $14 30. Qxf3 Qh4) 30. Rd2 {[%emt 0:01:13]} Re8 {[%emt 0:00:52]} 31. c5 {[%emt 0:03:20]} Bf7 {[%emt 0:00:50]} 32. a4 {[%emt 0:01:45][%cal Ba2a4,Ba4b5,Bb5c6,Bc6c7][%mdl 32]} g6 {[%emt 0:03:32]} 33. Qe3 {[%emt 0:01:52]} Red8 {[%emt 0:00:14][%cal Rf7d5]} 34. Red1 {[%emt 0:00:56]} Be8 $2 {[%emt 0:00:55]} (34... h6 35. d6 b6) 35. b5 {[%emt 0:04:05]} axb5 {[%emt 0:00:11]} 36. axb5 {[%emt 0:00:16] [#] d6 is the strong threat.} Rc7 {[%emt 0:00:29]} (36... Rf7 $142 37. d6 Qg7) 37. d6 {[%emt 0:00:22] White is clearly winning.} Rcd7 {[%emt 0:00:16] Black is weak on the dark squares} 38. c6 {[%emt 0:01:03]} bxc6 {[%emt 0:00:12]} 39. bxc6 {[%emt 0:00:10]} Rxd6 {[%emt 0:00:19]} 40. c7 {[%emt 0:00:16]} Rxd2 {[%emt 0:00:10]} 41. Rxd2 {[%emt 0:01:30]} Rc8 {[%emt 0:00:15]} 42. Nd5 {[%emt 0:01:17]} Qe6 {[%emt 0:01:00]} (42... Qd6 $142 43. Qb3 Kg7 44. Qb2+ Kf7) 43. Qc5 {[%emt 0:01:54]} Kf7 {[%emt 0:00:05] Inhibits Ne7.} 44. Nb6 {[%emt 0:00:41] Weighted Error Value: White=0.22 (precise) /Black=0.30.  Loses game:     	---       	Black=1      Missed win:     	White=1     	---        Mistake:       	---       	Black=5      Inaccurate:     	White=2     	Black=2      OK:         	White=14    	Black=9      Best:        	White=3     	---} 1-0